[Event "*** Titled Tuesday Blitz"]
[Site "Chess.com"]
[Date "2020.11.10"]
[Round "4"]
[White "vinniethepooh"]
[Black "jens1102"]
[Result "1-0"]
[WhiteElo "2619"]
[BlackElo "2376"]
[TimeControl "180+1"]
[EndTime "10:40:37 PST"]
[Termination "vinniethepooh won by resignation"]

1. d4 {[%clk 0:03:00.9]} 1... Nf6 {[%clk 0:02:58.2]} 2. c4 {[%clk 0:03:01.2]}
2... e6 {[%clk 0:02:58.5]} 3. Nc3 {[%clk 0:03:01.5]} 3... Bb4 {[%clk 0:02:58.3]}
4. f3 {[%clk 0:03:01.6]} 4... d5 {[%clk 0:02:57.9]} 5. a3 {[%clk 0:03:01.9]}
5... Bxc3+ {[%clk 0:02:57.8]} 6. bxc3 {[%clk 0:03:02.8]} 6... Nc6 {[%clk
0:02:58.7]} 7. cxd5 {[%clk 0:03:01.9]} 7... exd5 {[%clk 0:02:59]} 8. e3 {[%clk
0:03:02.4]} 8... O-O {[%clk 0:02:57.2]} 9. Bd3 {[%clk 0:03:02.6]} 9... Na5
{[%clk 0:02:53.6]} 10. Ne2 {[%clk 0:03:02.3]} 10... c5 {[%clk 0:02:53.9]} 11.
O-O {[%clk 0:03:02]} 11... cxd4 {[%clk 0:02:48.5]} 12. cxd4 {[%clk 0:03:00.6]}
12... b6 {[%clk 0:02:48.7]} 13. e4 {[%clk 0:02:52.7]} 13... dxe4 {[%clk
0:02:47.2]} 14. fxe4 {[%clk 0:02:53.6]} 14... Bb7 {[%clk 0:02:47.8]} 15. Bg5
{[%clk 0:02:53.8]} 15... Re8 {[%clk 0:02:41.2]} 16. Rf4 {[%clk 0:02:13.3]} 16...
Qb8 {[%clk 0:02:25.9]} 17. Bxf6 {[%clk 0:02:07.9]} 17... gxf6 {[%clk 0:02:26.5]}
18. Qe1 {[%clk 0:02:00.2]} 18... Kh8 {[%clk 0:02:23.2]} 19. Qh4 {[%clk
0:01:58.9]} 19... Qd8 {[%clk 0:02:21.9]} 20. Qh6 {[%clk 0:01:22.8]} 20... Rg8
{[%clk 0:02:09.1]} 21. Rxf6 {[%clk 0:01:10.1]} 21... Rg6 {[%clk 0:01:54.8]} 22.
Rxg6 {[%clk 0:01:09.9]} 22... fxg6 {[%clk 0:01:55.7]} 23. Rf1 {[%clk 0:01:09.8]}
23... Qe7 {[%clk 0:01:51.5]} 24. Nf4 {[%clk 0:01:01.4]} 24... Qd6 {[%clk
0:01:37.4]} 25. e5 {[%clk 0:00:46.3]} 25... Qxd4+ {[%clk 0:01:37]} 26. Kh1
{[%clk 0:00:45.9]} 26... Be4 {[%clk 0:00:53]} 27. Nxg6+ {[%clk 0:00:44.4]} 27...
Bxg6 {[%clk 0:00:53.6]} 28. Rf8+ {[%clk 0:00:44.3]} 1-0

[Event "*** Titled Tuesday Blitz"]
[Site "Chess.com"]
[Date "2020.11.10"]
[Round "4"]
[White "mapleaff"]
[Black "Evachess2006"]
[Result "1-0"]
[WhiteElo "2374"]
[BlackElo "1630"]
[TimeControl "180+1"]
[EndTime "10:40:37 PST"]
[Termination "mapleaff won by resignation"]

1. e4 {[%clk 0:03:00.9]} 1... e5 {[%clk 0:02:53.2]} 2. Nf3 {[%clk 0:03:00.9]}
2... Nc6 {[%clk 0:02:42]} 3. Bb5 {[%clk 0:03:01.2]} 3... Nf6 {[%clk 0:02:29.7]}
4. O-O {[%clk 0:02:59.2]} 4... d6 {[%clk 0:02:22.5]} 5. d4 {[%clk 0:02:58]} 5...
exd4 {[%clk 0:02:09.3]} 6. Nxd4 {[%clk 0:02:56.8]} 6... Bd7 {[%clk 0:02:02.9]}
7. Nxc6 {[%clk 0:02:53]} 7... Bxc6 {[%clk 0:02:01.3]} 8. Bxc6+ {[%clk
0:02:52.6]} 8... bxc6 {[%clk 0:01:59.3]} 9. Nc3 {[%clk 0:02:52.5]} 9... g6
{[%clk 0:01:43.4]} 10. Bg5 {[%clk 0:02:48.8]} 10... Bg7 {[%clk 0:01:41.4]} 11.
Qd3 {[%clk 0:02:43.5]} 11... O-O {[%clk 0:01:38.9]} 12. Qc4 {[%clk 0:02:41.2]}
12... h6 {[%clk 0:01:31.5]} 13. Bxf6 {[%clk 0:02:36.3]} 13... Bxf6 {[%clk
0:01:02.1]} 14. Qxc6 {[%clk 0:02:35.5]} 14... Rb8 {[%clk 0:00:57.5]} 15. Rab1
{[%clk 0:02:27.9]} 15... Rb6 {[%clk 0:00:46.2]} 16. Qc4 {[%clk 0:02:21.6]} 16...
c6 {[%clk 0:00:41.7]} 17. Rfd1 {[%clk 0:02:10.6]} 17... Qe7 {[%clk 0:00:35.2]}
18. b3 {[%clk 0:02:00.3]} 18... Qe5 {[%clk 0:00:27.4]} 19. Na4 {[%clk
0:01:39.9]} 19... Rbb8 {[%clk 0:00:17.6]} 20. Qxc6 {[%clk 0:01:39.2]} 20... Bg7
{[%clk 0:00:05.8]} 21. c4 {[%clk 0:01:34.9]} 21... Rfc8 {[%clk 0:00:04.6]} 22.
Qd5 {[%clk 0:01:34.9]} 22... Qxd5 {[%clk 0:00:02]} 23. Rxd5 {[%clk 0:01:34.5]}
23... Re8 {[%clk 0:00:02.5]} 24. f3 {[%clk 0:01:31.3]} 24... Re6 {[%clk
0:00:01.5]} 25. Rbd1 {[%clk 0:01:30.8]} 25... Rd8 {[%clk 0:00:01.8]} 26. Nc5
{[%clk 0:01:29.8]} 26... Bf8 {[%clk 0:00:02.4]} 27. Nxe6 {[%clk 0:01:29.6]} 1-0

[Event "*** Titled Tuesday Blitz"]
[Site "Chess.com"]
[Date "2020.11.10"]
[Round "4"]
[White "Lenyas66"]
[Black "tandaleo"]
[Result "1-0"]
[WhiteElo "2466"]
[BlackElo "2300"]
[TimeControl "180+1"]
[EndTime "10:40:38 PST"]
[Termination "Lenyas66 won by resignation"]

1. d4 {[%clk 0:03:00.9]} 1... d5 {[%clk 0:02:59.5]} 2. Bg5 {[%clk 0:03:00.5]}
2... c6 {[%clk 0:02:50.6]} 3. Nc3 {[%clk 0:03:00.5]} 3... h6 {[%clk 0:02:47.4]}
4. Bh4 {[%clk 0:02:59.6]} 4... Qb6 {[%clk 0:02:47.7]} 5. Rb1 {[%clk 0:02:59]}
5... e5 {[%clk 0:02:47.9]} 6. dxe5 {[%clk 0:02:38.5]} 6... Bb4 {[%clk
0:02:45.2]} 7. e3 {[%clk 0:02:36.5]} 7... Nd7 {[%clk 0:02:39.9]} 8. Nf3 {[%clk
0:02:22.7]} 8... Nc5 {[%clk 0:02:35]} 9. Bd3 {[%clk 0:02:01.9]} 9... Bg4 {[%clk
0:02:17.4]} 10. O-O {[%clk 0:02:00.6]} 10... g5 {[%clk 0:02:10.1]} 11. Bg3
{[%clk 0:01:59.9]} 11... Ne7 {[%clk 0:02:08.9]} 12. h3 {[%clk 0:01:58.6]} 12...
Bh5 {[%clk 0:02:08.6]} 13. Ne2 {[%clk 0:01:50.9]} 13... Bxf3 {[%clk 0:01:32.9]}
14. gxf3 {[%clk 0:01:50.1]} 14... Nxd3 {[%clk 0:01:22.3]} 15. Qxd3 {[%clk
0:01:50.2]} 15... Ng6 {[%clk 0:01:22.4]} 16. e6 {[%clk 0:01:49.2]} 16... Be7
{[%clk 0:00:45.9]} 17. c4 {[%clk 0:01:43.6]} 17... O-O-O {[%clk 0:00:27.3]} 18.
exf7 {[%clk 0:01:41.6]} 18... Nh4 {[%clk 0:00:27]} 19. Bxh4 {[%clk 0:01:32.5]}
19... gxh4 {[%clk 0:00:27.9]} 20. Qf5+ {[%clk 0:01:32.5]} 20... Kb8 {[%clk
0:00:27.3]} 21. Nf4 {[%clk 0:01:30.4]} 21... dxc4 {[%clk 0:00:24.1]} 22. Ng6
{[%clk 0:01:29.2]} 22... Bd6 {[%clk 0:00:15.7]} 23. Rbd1 {[%clk 0:01:27.3]}
23... Qc7 {[%clk 0:00:07.7]} 24. Qf6 {[%clk 0:01:24.5]} 24... Rhf8 {[%clk
0:00:06.7]} 25. Nxf8 {[%clk 0:01:21.8]} 1-0

[Event "*** Titled Tuesday Blitz"]
[Site "Chess.com"]
[Date "2020.11.10"]
[Round "4"]
[White "nochewycandy"]
[Black "Legendinunknown"]
[Result "1-0"]
[WhiteElo "2541"]
[BlackElo "2710"]
[TimeControl "180+1"]
[EndTime "10:40:45 PST"]
[Termination "nochewycandy won by checkmate"]

1. e4 {[%clk 0:03:00.9]} 1... e5 {[%clk 0:02:59.4]} 2. Qh5 {[%clk 0:03:01]} 2...
Nc6 {[%clk 0:02:58]} 3. Bc4 {[%clk 0:03:00]} 3... g6 {[%clk 0:02:56.4]} 4. Qf3
{[%clk 0:02:59.6]} 4... Qf6 {[%clk 0:02:56.2]} 5. Nc3 {[%clk 0:02:59.4]} 5...
Qxf3 {[%clk 0:02:52.9]} 6. Nxf3 {[%clk 0:03:00.3]} 6... Nge7 {[%clk 0:02:47.3]}
7. Nb5 {[%clk 0:02:58.6]} 7... Na5 {[%clk 0:02:32.5]} 8. Bb3 {[%clk 0:02:42.3]}
8... Nxb3 {[%clk 0:02:27.1]} 9. axb3 {[%clk 0:02:43.2]} 9... Rb8 {[%clk
0:02:27.3]} 10. Nxc7+ {[%clk 0:02:40.3]} 10... Kd8 {[%clk 0:02:25.5]} 11. Nb5
{[%clk 0:02:41.2]} 11... f6 {[%clk 0:02:23.5]} 12. Nxa7 {[%clk 0:02:36.1]} 12...
Nc6 {[%clk 0:02:21.7]} 13. Nb5 {[%clk 0:02:32.1]} 13... d6 {[%clk 0:02:19.8]}
14. c3 {[%clk 0:02:29.5]} 14... Bg4 {[%clk 0:02:19]} 15. d3 {[%clk 0:02:28.1]}
15... Be7 {[%clk 0:02:17.4]} 16. Be3 {[%clk 0:02:27.6]} 16... Kd7 {[%clk
0:02:11]} 17. Nd2 {[%clk 0:02:25.9]} 17... f5 {[%clk 0:02:06.4]} 18. f3 {[%clk
0:02:25.1]} 18... Bh5 {[%clk 0:02:05.8]} 19. Nc4 {[%clk 0:02:20]} 19... f4
{[%clk 0:02:04.7]} 20. Bf2 {[%clk 0:02:17.8]} 20... g5 {[%clk 0:02:04.3]} 21.
Nb6+ {[%clk 0:02:16.8]} 21... Ke6 {[%clk 0:02:01.1]} 22. Nc7+ {[%clk 0:02:15.6]}
22... Kf7 {[%clk 0:02:00.1]} 23. g4 {[%clk 0:02:11]} 23... Bg6 {[%clk
0:01:55.1]} 24. h4 {[%clk 0:02:10.4]} 24... h5 {[%clk 0:01:54.4]} 25. gxh5
{[%clk 0:02:01.3]} 25... Rxh5 {[%clk 0:01:53.6]} 26. Nbd5 {[%clk 0:01:56.5]}
26... gxh4 {[%clk 0:01:46.4]} 27. Ke2 {[%clk 0:01:51.2]} 27... h3 {[%clk
0:01:45.6]} 28. b4 {[%clk 0:01:46.4]} 28... Bd8 {[%clk 0:01:41]} 29. Nb5 {[%clk
0:01:43.9]} 29... Ke6 {[%clk 0:01:36.2]} 30. Rag1 {[%clk 0:01:43.8]} 30... Bf7
{[%clk 0:01:34.3]} 31. Rg7 {[%clk 0:01:39.2]} 31... Ne7 {[%clk 0:01:33.1]} 32.
Nbc7+ {[%clk 0:01:35]} 32... Bxc7 {[%clk 0:01:30.1]} 33. Nxc7+ {[%clk
0:01:33.5]} 33... Kf6 {[%clk 0:01:30.6]} 34. Rgg1 {[%clk 0:01:29.2]} 34... d5
{[%clk 0:01:25.6]} 35. d4 {[%clk 0:01:27.5]} 35... dxe4 {[%clk 0:01:24.2]} 36.
fxe4 {[%clk 0:01:24.8]} 36... Ng6 {[%clk 0:01:23.9]} 37. dxe5+ {[%clk
0:01:19.7]} 37... Nxe5 {[%clk 0:01:23.1]} 38. Bd4 {[%clk 0:01:19.5]} 38... Rc8
{[%clk 0:01:18.6]} 39. Nd5+ {[%clk 0:01:16.5]} 39... Bxd5 {[%clk 0:01:18.3]} 40.
exd5 {[%clk 0:01:17.4]} 40... Kf5 {[%clk 0:01:18.4]} 41. Rg7 {[%clk 0:01:12.9]}
41... Re8 {[%clk 0:01:17.3]} 42. Rxb7 {[%clk 0:01:02.9]} 42... Nc6+ {[%clk
0:01:12.5]} 43. Kd3 {[%clk 0:01:02.1]} 43... Nxd4 {[%clk 0:01:11.4]} 44. Kxd4
{[%clk 0:01:02.1]} 44... f3 {[%clk 0:01:09.6]} 45. Rf7+ {[%clk 0:01:00.3]} 45...
Kg4 {[%clk 0:01:09.8]} 46. Rg1+ {[%clk 0:01:00.4]} 46... Kh4 {[%clk 0:01:08.3]}
47. Rf4# {[%clk 0:01:00.1]} 1-0

[Event "*** Titled Tuesday Blitz"]
[Site "Chess.com"]
[Date "2020.11.10"]
[Round "4"]
[White "BigAl"]
[Black "starworld123"]
[Result "0-1"]
[WhiteElo "2482"]
[BlackElo "2677"]
[TimeControl "180+1"]
[EndTime "10:40:52 PST"]
[Termination "starworld123 won by resignation"]

1. e4 {[%clk 0:03:00.9]} 1... c5 {[%clk 0:02:59.8]} 2. Nc3 {[%clk 0:03:00.3]}
2... Nc6 {[%clk 0:02:59.6]} 3. g3 {[%clk 0:03:00.6]} 3... g6 {[%clk 0:02:59.9]}
4. Bg2 {[%clk 0:03:01.4]} 4... Bg7 {[%clk 0:03:00.6]} 5. d3 {[%clk 0:03:02.3]}
5... e6 {[%clk 0:03:01.1]} 6. Be3 {[%clk 0:03:02.9]} 6... b6 {[%clk 0:03:00.7]}
7. f4 {[%clk 0:03:00.5]} 7... Nge7 {[%clk 0:03:00.9]} 8. Nf3 {[%clk 0:02:54.8]}
8... d5 {[%clk 0:03:01.3]} 9. Bd2 {[%clk 0:02:51.3]} 9... O-O {[%clk 0:02:59.2]}
10. O-O {[%clk 0:02:51.2]} 10... Bb7 {[%clk 0:02:58.9]} 11. h3 {[%clk 0:02:51]}
11... Rc8 {[%clk 0:02:57.7]} 12. Rb1 {[%clk 0:02:42.4]} 12... Nd4 {[%clk
0:02:56.1]} 13. Nh2 {[%clk 0:02:35.6]} 13... dxe4 {[%clk 0:02:52.6]} 14. Nxe4
{[%clk 0:02:33.7]} 14... Ndf5 {[%clk 0:02:38.9]} 15. Qe1 {[%clk 0:02:16.6]}
15... c4 {[%clk 0:02:33.5]} 16. dxc4 {[%clk 0:02:08.6]} 16... Rxc4 {[%clk
0:02:21.7]} 17. c3 {[%clk 0:02:08.8]} 17... Bxe4 {[%clk 0:02:17.6]} 18. Bxe4
{[%clk 0:02:06.7]} 18... Rxe4 {[%clk 0:02:13.4]} 19. Qxe4 {[%clk 0:02:06.9]}
19... Nxg3 {[%clk 0:02:12.1]} 20. Qg2 {[%clk 0:02:05.4]} 20... Nxf1 {[%clk
0:02:11.5]} 21. Rxf1 {[%clk 0:02:06.3]} 21... Nf5 {[%clk 0:02:11.6]} 22. Ng4
{[%clk 0:02:05.7]} 22... Qd3 {[%clk 0:02:10.6]} 23. Bc1 {[%clk 0:01:54.2]} 23...
Rd8 {[%clk 0:02:08.7]} 24. Qb7 {[%clk 0:01:48.3]} 24... Qd7 {[%clk 0:02:04.6]}
25. Qf3 {[%clk 0:01:38.8]} 25... Qd5 {[%clk 0:02:04.4]} 26. Qxd5 {[%clk
0:01:37.7]} 26... Rxd5 {[%clk 0:02:05.3]} 27. Ne3 {[%clk 0:01:34.1]} 27... Nxe3
{[%clk 0:02:03.9]} 28. Bxe3 {[%clk 0:01:34]} 28... Rd3 {[%clk 0:02:03.9]} 29.
Re1 {[%clk 0:01:34.4]} 29... Bf8 {[%clk 0:02:02.5]} 30. Kg2 {[%clk 0:01:32.3]}
30... Bc5 {[%clk 0:01:54.1]} 31. Bxc5 {[%clk 0:01:29.1]} 31... bxc5 {[%clk
0:01:55]} 32. Re2 {[%clk 0:01:23.5]} 32... Kg7 {[%clk 0:01:55.5]} 33. b4 {[%clk
0:01:15]} 33... cxb4 {[%clk 0:01:54.9]} 34. cxb4 {[%clk 0:01:15.4]} 34... Rd4
{[%clk 0:01:55.2]} 35. Rb2 {[%clk 0:01:16.1]} 35... Rxf4 {[%clk 0:01:55.7]} 36.
a4 {[%clk 0:01:16.8]} 36... Rc4 {[%clk 0:01:48.1]} 37. Kf3 {[%clk 0:01:13.9]}
37... e5 {[%clk 0:01:47.5]} 38. Ke3 {[%clk 0:01:14]} 38... Rd4 {[%clk
0:01:47.9]} 39. a5 {[%clk 0:01:10.5]} 39... a6 {[%clk 0:01:47.8]} 40. b5 {[%clk
0:01:10.4]} 40... axb5 {[%clk 0:01:48.7]} 41. Rxb5 {[%clk 0:01:11.1]} 41... Kf6
{[%clk 0:01:44.3]} 42. Rb6+ {[%clk 0:01:03.9]} 42... Kf5 {[%clk 0:01:44.4]} 43.
Rb7 {[%clk 0:01:03.2]} 43... f6 {[%clk 0:01:45]} 44. Rxh7 {[%clk 0:01:02.6]}
44... Ra4 {[%clk 0:01:45.6]} 45. Ra7 {[%clk 0:01:02.6]} 45... Ra3+ {[%clk
0:01:46.5]} 46. Kd2 {[%clk 0:01:03]} 46... Rxh3 {[%clk 0:01:46.9]} 47. a6 {[%clk
0:01:02.9]} 47... Ra3 {[%clk 0:01:47.2]} 48. Kc2 {[%clk 0:01:02.7]} 48... e4
{[%clk 0:01:47.8]} 49. Kb2 {[%clk 0:01:03]} 49... Ra5 {[%clk 0:01:48.1]} 50. Kb3
{[%clk 0:01:02.2]} 50... e3 {[%clk 0:01:48.7]} 51. Re7 {[%clk 0:01:01.5]} 51...
Rxa6 {[%clk 0:01:46.4]} 52. Rxe3 {[%clk 0:01:02.4]} 52... g5 {[%clk 0:01:45.6]}
53. Kc4 {[%clk 0:01:01.5]} 53... Rd6 {[%clk 0:01:46]} 54. Kc5 {[%clk 0:01:01.3]}
54... Rd1 {[%clk 0:01:45.5]} 55. Rf3+ {[%clk 0:01:01.6]} 55... Kg6 {[%clk
0:01:45.9]} 56. Kc4 {[%clk 0:01:01.7]} 56... f5 {[%clk 0:01:46.4]} 57. Ra3
{[%clk 0:01:01.2]} 57... g4 {[%clk 0:01:46.8]} 58. Ra6+ {[%clk 0:01:02.1]} 58...
Kg5 {[%clk 0:01:47.3]} 59. Kc3 {[%clk 0:01:03]} 59... g3 {[%clk 0:01:47.7]} 60.
Kc2 {[%clk 0:01:03.9]} 60... Rd8 {[%clk 0:01:47.9]} 61. Ra8 {[%clk 0:01:04.8]}
61... Rxa8 {[%clk 0:01:47.6]} 0-1

[Event "*** Titled Tuesday Blitz"]
[Site "Chess.com"]
[Date "2020.11.10"]
[Round "4"]
[White "profofchess"]
[Black "Aleksey_Sorokin"]
[Result "0-1"]
[WhiteElo "2439"]
[BlackElo "2739"]
[TimeControl "180+1"]
[EndTime "10:40:52 PST"]
[Termination "Aleksey_Sorokin won on time"]

1. e4 {[%clk 0:03:00.9]} 1... c6 {[%clk 0:02:50.6]} 2. Nc3 {[%clk 0:02:59.3]}
2... d5 {[%clk 0:02:51.5]} 3. Nf3 {[%clk 0:02:59.6]} 3... dxe4 {[%clk
0:02:51.1]} 4. Nxe4 {[%clk 0:02:59.8]} 4... Nd7 {[%clk 0:02:52]} 5. Bc4 {[%clk
0:02:53.2]} 5... e6 {[%clk 0:02:50.5]} 6. Qe2 {[%clk 0:02:47.7]} 6... Ngf6
{[%clk 0:02:48.6]} 7. Neg5 {[%clk 0:02:47.8]} 7... Nb6 {[%clk 0:02:48.1]} 8. Ne5
{[%clk 0:02:47.4]} 8... Nxc4 {[%clk 0:02:43.8]} 9. Qxc4 {[%clk 0:02:47.2]} 9...
Qd5 {[%clk 0:02:43]} 10. Qxd5 {[%clk 0:02:42.5]} 10... exd5 {[%clk 0:02:43.9]}
11. Ngxf7 {[%clk 0:02:42.6]} 11... Rg8 {[%clk 0:02:43.8]} 12. Ng5 {[%clk
0:02:40.5]} 12... Bd6 {[%clk 0:02:41.7]} 13. d4 {[%clk 0:02:36.7]} 13... h6
{[%clk 0:02:41.5]} 14. Ngf3 {[%clk 0:02:36]} 14... Bf5 {[%clk 0:02:39.8]} 15. c3
{[%clk 0:02:30.9]} 15... O-O-O {[%clk 0:02:39.8]} 16. O-O {[%clk 0:02:29.8]}
16... Rde8 {[%clk 0:02:40.1]} 17. h3 {[%clk 0:01:45.2]} 17... g5 {[%clk
0:02:34.8]} 18. Nf7 {[%clk 0:01:44.7]} 18... Bf8 {[%clk 0:02:28]} 19. Re1 {[%clk
0:01:37.2]} 19... Ne4 {[%clk 0:02:26.2]} 20. Nh2 {[%clk 0:01:25.2]} 20... Re7
{[%clk 0:02:21.4]} 21. Ne5 {[%clk 0:01:07]} 21... Bg7 {[%clk 0:02:21]} 22. f3
{[%clk 0:00:47.9]} 22... Nd6 {[%clk 0:02:16.7]} 23. Bd2 {[%clk 0:00:41.9]} 23...
Rge8 {[%clk 0:02:09.4]} 24. Neg4 {[%clk 0:00:26.5]} 24... Re2 {[%clk 0:02:06.9]}
25. Rxe2 {[%clk 0:00:22.3]} 25... Rxe2 {[%clk 0:02:07.8]} 26. Nf1 {[%clk
0:00:20.7]} 26... Nc4 {[%clk 0:02:04.4]} 27. Re1 {[%clk 0:00:17.7]} 27... Rxe1
{[%clk 0:01:58.2]} 28. Bxe1 {[%clk 0:00:17.4]} 28... Nxb2 {[%clk 0:01:58]} 29.
Ng3 {[%clk 0:00:12.4]} 29... Bb1 {[%clk 0:01:55.2]} 30. Nh5 {[%clk 0:00:11.7]}
30... Bf8 {[%clk 0:01:53.2]} 31. a3 {[%clk 0:00:09.1]} 31... Nc4 {[%clk
0:01:50.9]} 32. Ne5 {[%clk 0:00:03.8]} 32... Nxe5 {[%clk 0:01:49.4]} 33. dxe5
{[%clk 0:00:03.7]} 33... Bxa3 {[%clk 0:01:50.3]} 34. g3 {[%clk 0:00:02.2]} 34...
a5 {[%clk 0:01:50]} 35. f4 {[%clk 0:00:02.1]} 35... a4 {[%clk 0:01:48.4]} 36.
fxg5 {[%clk 0:00:01.4]} 36... hxg5 {[%clk 0:01:48.1]} 37. Nf6 {[%clk 0:00:01.3]}
37... Be7 {[%clk 0:01:44.4]} 38. c4 {[%clk 0:00:01.4]} 38... dxc4 {[%clk
0:01:38.4]} 0-1

[Event "*** Titled Tuesday Blitz"]
[Site "Chess.com"]
[Date "2020.11.10"]
[Round "4"]
[White "Radzio1987"]
[Black "SharapovEvgeny"]
[Result "1/2-1/2"]
[WhiteElo "2785"]
[BlackElo "2466"]
[TimeControl "180+1"]
[EndTime "10:40:56 PST"]
[Termination "Game drawn by repetition"]

1. c4 {[%clk 0:03:00.9]} 1... c5 {[%clk 0:02:58.2]} 2. g3 {[%clk 0:02:59.8]}
2... Nc6 {[%clk 0:02:57.6]} 3. Bg2 {[%clk 0:03:00.3]} 3... g6 {[%clk 0:02:57.8]}
4. Nc3 {[%clk 0:03:00.2]} 4... Bg7 {[%clk 0:02:57.8]} 5. b3 {[%clk 0:03:00.9]}
5... e5 {[%clk 0:02:56.6]} 6. Bb2 {[%clk 0:03:00.2]} 6... Nge7 {[%clk
0:02:56.8]} 7. e3 {[%clk 0:03:00.5]} 7... O-O {[%clk 0:02:56.2]} 8. Nge2 {[%clk
0:03:01]} 8... d6 {[%clk 0:02:56]} 9. d3 {[%clk 0:03:01.3]} 9... Be6 {[%clk
0:02:55.2]} 10. Nd5 {[%clk 0:03:01]} 10... Rb8 {[%clk 0:02:49.4]} 11. Nec3
{[%clk 0:02:59.8]} 11... a6 {[%clk 0:02:47.6]} 12. O-O {[%clk 0:02:54.7]} 12...
b5 {[%clk 0:02:46.7]} 13. Qd2 {[%clk 0:02:55.1]} 13... b4 {[%clk 0:02:46.4]} 14.
Nxe7+ {[%clk 0:02:50.5]} 14... Nxe7 {[%clk 0:02:45.4]} 15. Nd5 {[%clk
0:02:49.7]} 15... Nxd5 {[%clk 0:02:44.8]} 16. cxd5 {[%clk 0:02:50.6]} 16... Bd7
{[%clk 0:02:44.5]} 17. f4 {[%clk 0:02:49.4]} 17... exf4 {[%clk 0:02:40.7]} 18.
gxf4 {[%clk 0:02:46.8]} 18... Bxb2 {[%clk 0:02:38.1]} 19. Qxb2 {[%clk
0:02:47.7]} 19... f5 {[%clk 0:02:36.1]} 20. e4 {[%clk 0:02:43.6]} 20... fxe4
{[%clk 0:02:28.2]} 21. dxe4 {[%clk 0:02:44.5]} 21... Qh4 {[%clk 0:02:27.5]} 22.
Qd2 {[%clk 0:02:26]} 22... Rbe8 {[%clk 0:02:23.7]} 23. Rae1 {[%clk 0:02:19.5]}
23... g5 {[%clk 0:02:11.3]} 24. fxg5 {[%clk 0:02:16.7]} 24... Rxf1+ {[%clk
0:02:09.8]} 25. Rxf1 {[%clk 0:02:17.6]} 25... Re5 {[%clk 0:01:59.7]} 26. Rf6
{[%clk 0:01:01.9]} 26... Rxg5 {[%clk 0:01:54.7]} 27. Qf2 {[%clk 0:01:01.8]}
27... Qxf2+ {[%clk 0:01:26.2]} 28. Kxf2 {[%clk 0:01:02.7]} 28... Rg6 {[%clk
0:01:25.9]} 29. Rf4 {[%clk 0:01:02.8]} 29... Kg7 {[%clk 0:01:23.7]} 30. Bf1
{[%clk 0:01:02.8]} 30... Rf6 {[%clk 0:01:23]} 31. Rxf6 {[%clk 0:00:56.4]} 31...
Kxf6 {[%clk 0:01:22.7]} 32. Bxa6 {[%clk 0:00:57]} 32... Ke5 {[%clk 0:01:22.2]}
33. Ke3 {[%clk 0:00:57.2]} 33... h6 {[%clk 0:01:18.9]} 34. Be2 {[%clk
0:00:56.6]} 34... Be8 {[%clk 0:01:16.9]} 35. h4 {[%clk 0:00:56.4]} 35... Bg6
{[%clk 0:01:16]} 36. Bf3 {[%clk 0:00:56.5]} 36... Bh7 {[%clk 0:01:14.1]} 37. h5
{[%clk 0:00:53.5]} 37... Bg8 {[%clk 0:01:13.1]} 38. Bg4 {[%clk 0:00:53.3]} 38...
Bh7 {[%clk 0:01:12.9]} 39. Bf3 {[%clk 0:00:51.8]} 39... Bg8 {[%clk 0:01:12.5]}
40. Be2 {[%clk 0:00:40.5]} 40... Bh7 {[%clk 0:01:10.7]} 41. Bf3 {[%clk
0:00:33.7]} 1/2-1/2

[Event "*** Titled Tuesday Blitz"]
[Site "Chess.com"]
[Date "2020.11.10"]
[Round "4"]
[White "yobdc"]
[Black "AliKa2810"]
[Result "1-0"]
[WhiteElo "2416"]
[BlackElo "2560"]
[TimeControl "180+1"]
[EndTime "10:40:57 PST"]
[Termination "yobdc won by resignation"]

1. d4 {[%clk 0:03:00.9]} 1... d5 {[%clk 0:03:00.2]} 2. Nf3 {[%clk 0:03:01]} 2...
c6 {[%clk 0:02:58.5]} 3. e3 {[%clk 0:03:00.1]} 3... Bg4 {[%clk 0:02:54.6]} 4. h3
{[%clk 0:02:59.4]} 4... Bh5 {[%clk 0:02:54]} 5. g4 {[%clk 0:02:57.3]} 5... Bg6
{[%clk 0:02:53.8]} 6. Ne5 {[%clk 0:02:57.6]} 6... Nd7 {[%clk 0:02:51]} 7. Nxg6
{[%clk 0:02:55.1]} 7... hxg6 {[%clk 0:02:50.7]} 8. c4 {[%clk 0:02:54.3]} 8... e6
{[%clk 0:02:48.5]} 9. Qb3 {[%clk 0:02:53]} 9... Qc7 {[%clk 0:02:44.4]} 10. Nc3
{[%clk 0:02:50.8]} 10... Ngf6 {[%clk 0:02:44]} 11. Bg2 {[%clk 0:02:50.9]} 11...
Be7 {[%clk 0:02:43.5]} 12. Bd2 {[%clk 0:02:50.9]} 12... O-O {[%clk 0:02:28.8]}
13. g5 {[%clk 0:02:16]} 13... dxc4 {[%clk 0:02:28.6]} 14. Qxc4 {[%clk
0:02:15.1]} 14... Nd5 {[%clk 0:02:28.7]} 15. h4 {[%clk 0:02:10.7]} 15... N7b6
{[%clk 0:02:10.6]} 16. Qe2 {[%clk 0:02:07.5]} 16... e5 {[%clk 0:02:09.9]} 17. h5
{[%clk 0:01:49.5]} 17... Bxg5 {[%clk 0:01:53.1]} 18. hxg6 {[%clk 0:01:48.9]}
18... fxg6 {[%clk 0:01:52]} 19. O-O-O {[%clk 0:01:42.8]} 19... Qf7 {[%clk
0:01:33.6]} 20. Ne4 {[%clk 0:01:28.1]} 20... Bh6 {[%clk 0:01:31.6]} 21. dxe5
{[%clk 0:01:26.6]} 21... a5 {[%clk 0:01:21.8]} 22. f4 {[%clk 0:01:24.8]} 22...
Nb4 {[%clk 0:01:21]} 23. Bxb4 {[%clk 0:01:20.4]} 23... axb4 {[%clk 0:01:20.1]}
24. b3 {[%clk 0:01:20.1]} 24... Ra5 {[%clk 0:01:11]} 25. Nd6 {[%clk 0:01:19.6]}
25... Qe7 {[%clk 0:00:57.1]} 26. Qc2 {[%clk 0:01:10.8]} 26... Rfa8 {[%clk
0:00:21.2]} 27. Qxg6 {[%clk 0:01:09.9]} 27... Rxa2 {[%clk 0:00:20.4]} 28. Rxh6
{[%clk 0:01:06.8]} 28... Rxg2 {[%clk 0:00:13.5]} 29. Qh7+ {[%clk 0:01:05.2]} 1-0